[Event "5th Thessaloniki SKG Open-B 2024"]
[Site "Thessaloniki"]
[Date "2024.08.12"]
[Round "8.5"]
[White "Danis, Hrisovalantis"]
[Black "Ropokis, Christos"]
[Result "1/2-1/2"]
[ECO "A09"]
[WhiteElo "1983"]
[BlackElo "1735"]
[Annotator "NA RC"]
[PlyCount "114"]
[EventDate "2024.08.05"]
[EventType "swiss"]
[EventCountry "GRE"]
[SourceTitle "playchess.com"]
[Source "ChessBase"]
[SourceQuality "1"]
[TimeControl "40/5400+30:1800+30"]

1. Nf3 {[%emt 0:02:48]} d5 {[%emt 0:12:34]} 2. g3 {[%emt 0:00:24]} c5 {[%emt 0:01:37]} 3. Bg2 {[%emt 0:00:10]} Nc6 {[%emt 0:01:01]} 4. c4 {[%emt 0:01:17]} d4 {[%emt 0:04:03]} 5. e3 {[%emt 0:02:28]} g6 {[%emt 0:13:42]} 6. exd4 {[%emt 0:05:20]} Nxd4 {[%emt 0:00:03]} 7. Nxd4 {[%emt 0:02:03]} Qxd4 {[%emt 0:00:02]} 8. d3 {[%emt 0:07:54]} Qe5+ {[%emt 0:13:30]} 9. Be3 {[%emt 0:00:42]} Bh6 {[%emt 0:04:47]} 10. d4 {[%emt 0:19:58]} cxd4 {[%emt 0:04:35]} 11. Qxd4 {[%emt 0:00:05]} Bg7 {[%emt 0:00:04]} 12. Qxe5 {[%emt 0:00:32]} Bxe5 {[%emt 0:00:02]} 13. Nc3 {[%emt 0:01:10]} Nf6 {[%emt 0:01:10]} 14. O-O {[%emt 0:03:26]} O-O {[%emt 0:09:44]} 15. Rfe1 {[%emt 0:06:20]} Nd7 {[%emt 0:10:00]} 16. Rad1 {[%emt 0:10:28]} Re8 {[%emt 0:04:09]} 17. c5 {[%emt 0:06:31]} Bxc3 {[%emt 0:05:20]} 18. bxc3 {[%emt 0:00:01]} Ne5 {[%emt 0:13:07]} 19. Bg5 {[%emt 0:09:31]} Nc6 {[%emt 0:00:00]} 20. Rd6 {[%emt 0:01:44]} Be6 {[%emt 0:00:00]} 21. Bxc6 {[%emt 0:00:22]} bxc6 {[%emt 0:00:00]} 22. Rxc6 {[%emt 0:18:16]} Rac8 23. Rxc8 {[%emt 0:00:00]} Rxc8 {[%emt 0:00:00]} 24. Bxe7 {[%emt 0:00:00]} Bxa2 {[%emt 0:00:00]} 25. Ra1 {[%emt 0:00:00]} Bd5 {[%emt 0:00:00]} 26. Rxa7 {[%emt 0:00:00]} Ra8 {[%emt 0:00:00]} 27. Rxa8+ {[%emt 0:00:00]} Bxa8 {[%emt 0:00:00]} 28. Bf6 {[%emt 0:00:00]} Bf3 {[%emt 0:00:45]} 29. Kf1 {[%emt 0:00:00]} Kf8 {[%emt 0:00:05]} 30. Ke1 {[%emt 0:00:00]} Ke8 {[%emt 0:00:08]} 31. Kd2 {[%emt 0:00:00]} Kd7 {[%emt 0:00:06]} 32. Ke3 {[%emt 0:00:00]} Bg4 {[%emt 0:00:35]} 33. Kf4 {[%emt 0:00:00]} Be2 {[%emt 0:03:58]} 34. g4 {[%emt 0:00:00]} h5 {[%emt 0:01:08]} 35. f3 {[%emt 0:04:55]} Kc6 {[%emt 0:00:12]} 36. Bd4 {[%emt 0:00:05]} Kb5 {[%emt 0:00:53]} 37. h3 {[%emt 0:01:12]} Kc6 {[%emt 0:00:13]} 38. Ke3 {[%emt 0:00:37]} Bd1 {[%emt 0:00:03]} 39. Kf2 {[%emt 0:00:54]} Kd5 {[%emt 0:00:35]} 40. Kg3 {[%emt 0:00:15]} Be2 {[%emt 0:00:31]} 41. Kf4 {[%emt 0:00:39]} Kc6 {[%emt 0:00:25]} 42. gxh5 {[%emt 0:06:00]} gxh5 {[%emt 0:02:49]} 43. Ke4 {[%emt 0:00:21]} Bf1 {[%emt 0:02:25]} 44. h4 {[%emt 0:00:13]} Be2 {[%emt 0:02:02]} 45. f4 {[%emt 0:00:13]} Bg4 {[%emt 0:00:42]} 46. f5 {[%emt 0:00:02]} Be2 {[%emt 0:00:25]} 47. Ke5 {[%emt 0:00:23]} Bc4 {[%emt 0:00:36]} 48. Kf6 {[%emt 0:00:30]} Bd5 {[%emt 0:00:50]} 49. Be3 {[%emt 0:02:06]} Bc4 {[%emt 0:00:42]} 50. Kg5 {[%emt 0:00:32]} Be2 {[%emt 0:00:09]} 51. c4 {[%emt 0:00:38]} Bf3 {[%emt 0:02:08]} 52. Kf6 {[%emt 0:00:34]} Bg4 {[%emt 0:00:02]} 53. Bf2 {[%emt 0:01:01]} Bh3 {[%emt 0:00:10]} 54. Kg5 {[%emt 0:00:22]} Bg4 {[%emt 0:00:03]} 55. Bg1 {[%emt 0:00:13]} Be2 {[%emt 0:00:48]} 56. Kh6 {[%emt 0:00:32]} Bg4 {[%emt 0:01:18]} 57. Bf2 {[%emt 0:00:37]} Be2 {[%emt 0:01:11]} 1/2-1/2

[Event "5th Thessaloniki SKG Open-B 2024"]
[Site "Thessaloniki"]
[Date "2024.08.12"]
[Round "8.6"]
[White "Naci, Igli"]
[Black "Ozturk, Efe Hakan"]
[Result "0-1"]
[ECO "C01"]
[WhiteElo "1800"]
[BlackElo "2111"]
[Annotator "ChessBase"]
[PlyCount "144"]
[EventDate "2024.08.05"]
[EventType "swiss"]
[EventCountry "GRE"]
[SourceTitle "playchess.com"]
[Source "ChessBase"]
[SourceQuality "1"]
[TimeControl "40/5400+30:1800+30"]

1. e4 {[%emt 0:00:03]} e6 {[%emt 0:00:15]} 2. d4 {[%emt 0:00:13]} d5 {[%emt 0:00:15]} 3. exd5 {[%emt 0:02:57]} exd5 {[%emt 0:00:10]} 4. Bd3 {[%emt 0:00:03]} Bd6 {[%emt 0:04:37]} 5. Ne2 {[%emt 0:00:28]} Ne7 {[%emt 0:03:28]} 6. Nbc3 {[%emt 0:00:56]} Nbc6 {[%emt 0:00:22]} 7. Be3 {[%emt 0:02:48]} Be6 {[%emt 0:01:59]} 8. Qd2 {[%emt 0:01:55]} Qd7 {[%emt 0:00:37]} 9. Nb5 {[%emt 0:03:15]} f6 {[%emt 0:07:42]} 10. h4 {[%emt 0:00:53]} O-O-O {[%emt 0:01:32]} 11. Nxd6+ {[%emt 0:01:28]} Qxd6 {[%emt 0:00:14]} 12. a3 {[%emt 0:02:24]} h6 {[%emt 0:05:33]} 13. h5 {[%emt 0:02:26]} Bf5 {[%emt 0:05:11]} 14. O-O-O {[%emt 0:01:44]} Bxd3 {[%emt 0:02:33]} 15. Qxd3 {[%emt 0:00:40]} Rhe8 {[%emt 0:02:08]} 16. Nf4 {[%emt 0:05:54]} Kb8 {[%emt 0:03:10]} 17. g4 {[%emt 0:05:11]} Nc8 {[%emt 0:01:12]} 18. Bd2 {[%emt 0:02:26]} Re4 {[%emt 0:02:24]} 19. Ne2 {[%emt 0:03:45]} Rde8 {[%emt 0:06:12]} 20. Be3 {[%emt 0:07:23]} Nb6 {[%emt 0:09:50]} 21. Nc3 {[%emt 0:04:28]} Rxg4 {[%emt 0:07:33]} 22. Qf5 {[%emt 0:18:19]} Qe6 {[%emt 0:02:34]} 23. Qf3 {[%emt 0:00:58]} f5 {[%emt 0:06:18]} 24. Bf4 {[%emt 0:11:56]} a6 {[%emt 0:04:11]} 25. b4 {[%emt 0:06:14]} Rd8 {[%emt 0:09:51]} 26. Kb2 {[%emt 0:02:15]} Qf6 {[%emt 0:01:54]} 27. Ne2 {[%emt 0:02:26]} Re8 {[%emt 0:01:17]} 28. Be3 {[%emt 0:02:18]} Na7 {[%emt 0:05:21]} 29. c3 {[%emt 0:00:18]} Nb5 {[%emt 0:00:28]} 30. Rd3 {[%emt 0:01:55]} Nc4+ {[%emt 0:00:38]} 31. Kb3 {[%emt 0:00:36]} c6 {[%emt 0:01:09]} 32. a4 {[%emt 0:00:28]} Nbd6 {[%emt 0:00:17]} 33. Ng3 {[%emt 0:01:15]} Rge4 {[%emt 0:01:12]} 34. Bf4 {[%emt 0:00:27]} R4e6 {[%emt 0:00:29]} 35. Bxd6+ {[%emt 0:00:22]} Nxd6 {[%emt 0:00:12]} 36. Qf4 {[%emt 0:00:10]} Ka7 {[%emt 0:01:01]} 37. Rf3 {[%emt 0:00:33]} Rf8 {[%emt 0:00:46]} 38. a5 {[%emt 0:03:41]} Ne4 {[%emt 0:01:16]} 39. Nf1 {[%emt 0:00:53]} Qg5 {[%emt 0:01:07]} 40. Kc2 {[%emt 0:00:00]} Re7 {[%emt 0:00:00]} 41. Kd3 {[%emt 0:11:37]} Qf6 {[%emt 0:09:21]} 42. Rg1 {[%emt 0:00:48]} Ng5 {[%emt 0:01:35]} 43. Nd2 {[%emt 0:07:59]} Ne6 {[%emt 0:06:31]} 44. Qg3 {[%emt 0:08:16]} f4 {[%emt 0:01:36]} 45. Qg4 {[%emt 0:01:08]} Ng5 {[%emt 0:00:50]} 46. Rh3 {[%emt 0:01:11]} Nxh3 {[%emt 0:01:01]} 47. Qxh3 {[%emt 0:00:08]} Qf5+ {[%emt 0:00:07]} 48. Qxf5 {[%emt 0:00:05]} Rxf5 {[%emt 0:00:02]} 49. Rh1 {[%emt 0:00:22]} Rg5 {[%emt 0:00:49]} 50. Rh2 {[%emt 0:00:57]} Rf7 {[%emt 0:01:33]} 51. Nf3 {[%emt 0:00:09]} Rg3 {[%emt 0:00:26]} 52. fxg3 {[%emt 0:05:15]} fxg3 {[%emt 0:00:04]} 53. Re2 {[%emt 0:00:09]} Rxf3+ {[%emt 0:00:13]} 54. Kd2 {[%emt 0:00:01]} Rf2 {[%emt 0:01:59]} 55. Rxf2 {[%emt 0:00:12]} gxf2 {[%emt 0:00:01]} 56. Ke2 {[%emt 0:00:01]} Kb8 {[%emt 0:00:18]} 57. Kxf2 {[%emt 0:00:02]} Kc7 {[%emt 0:00:05]} 58. Ke3 {[%emt 0:02:14]} Kd6 {[%emt 0:00:15]} 59. Kf4 {[%emt 0:00:36]} Ke6 {[%emt 0:00:05]} 60. Kg4 {[%emt 0:00:36]} Kf6 {[%emt 0:00:11]} 61. Kf4 {[%emt 0:00:06]} g6 {[%emt 0:00:41]} 62. hxg6 {[%emt 0:00:04]} Kxg6 {[%emt 0:00:02]} 63. Ke5 {[%emt 0:00:17]} h5 {[%emt 0:00:46]} 64. Kd6 {[%emt 0:00:01]} h4 {[%emt 0:00:08]} 65. Kc7 {[%emt 0:00:02]} h3 {[%emt 0:00:07]} 66. Kxb7 {[%emt 0:00:03]} h2 {[%emt 0:00:09]} 67. Kxa6 {[%emt 0:00:06]} h1=Q {[%emt 0:00:06]} 68. Kb7 {[%emt 0:02:40]} Qc1 {[%emt 0:02:32]} 69. a6 {[%emt 0:01:38]} Qxc3 {[%emt 0:00:17]} 70. a7 {[%emt 0:00:15]} Qxb4+ {[%emt 0:00:07]} 71. Kxc6 {[%emt 0:00:11]} Qa5 {[%emt 0:00:27]} 72. Kb7 {[%emt 0:00:09]} Kf5 {[%emt 0:17:08]} 0-1

[Event "5th Thessaloniki SKG Open-B 2024"]
[Site "Thessaloniki"]
[Date "2024.08.12"]
[Round "8.7"]
[White "Mitsopoulos, Ioannis"]
[Black "Zlotogorski, Itay"]
[Result "1/2-1/2"]
[ECO "B01"]
[WhiteElo "1629"]
[BlackElo "1822"]
[Annotator "NA RC"]
[PlyCount "69"]
[EventDate "2024.08.05"]
[EventType "swiss"]
[EventCountry "GRE"]
[SourceTitle "playchess.com"]
[Source "ChessBase"]
[SourceQuality "1"]
[TimeControl "40/5400+30:1800+30"]

1. e4 {[%emt 0:00:03]} d5 {[%emt 0:01:41]} 2. exd5 {[%emt 0:00:07]} Qxd5 {[%emt 0:00:11]} 3. Nc3 {[%emt 0:00:07]} Qa5 {[%emt 0:00:10]} 4. d4 {[%emt 0:00:07]} Nf6 {[%emt 0:00:19]} 5. Nf3 {[%emt 0:01:15]} c6 {[%emt 0:00:53]} 6. Bc4 {[%emt 0:00:39]} Bg4 {[%emt 0:01:16]} 7. h3 {[%emt 0:00:09]} Bh5 {[%emt 0:00:13]} 8. g4 {[%emt 0:00:06]} Bg6 {[%emt 0:00:05]} 9. Bd2 {[%emt 0:00:51]} e6 {[%emt 0:00:33]} 10. Qe2 {[%emt 0:02:42]} Bb4 {[%emt 0:02:32]} 11. O-O-O {[%emt 0:01:21]} Nbd7 {[%emt 0:03:01]} 12. a3 {[%emt 0:00:51]} Bxc3 {[%emt 0:01:10]} 13. Bxc3 {[%emt 0:00:44]} Qc7 {[%emt 0:00:39]} 14. Ne5 {[%emt 0:01:57]} Nxe5 {[%emt 0:05:16]} 15. dxe5 {[%emt 0:00:27]} Nd5 {[%emt 0:00:20]} 16. Bxd5 {[%emt 0:02:17]} cxd5 {[%emt 0:00:37]} 17. Rhf1 {[%emt 0:03:47]} Qc4 {[%emt 0:09:57]} 18. Qxc4 {[%emt 0:02:33]} dxc4 {[%emt 0:00:59]} 19. Bb4 {[%emt 0:07:34]} Be4 {[%emt 0:02:05]} 20. Rd4 {[%emt 0:07:45]} Bd5 {[%emt 0:00:57]} 21. f4 {[%emt 0:09:42]} h5 {[%emt 0:04:29]} 22. f5 {[%emt 0:10:18]} O-O-O {[%emt 0:01:08]} 23. g5 {[%emt 0:16:20]} exf5 {[%emt 0:02:44]} 24. h4 {[%emt 0:04:37]} g6 {[%emt 0:02:23]} 25. a4 {[%emt 0:06:32]} b6 {[%emt 0:01:57]} 26. Bd6 {[%emt 0:03:05]} Be6 {[%emt 0:00:37]} 27. Rf3 {[%emt 0:01:42]} Kb7 {[%emt 0:02:08]} 28. Kd2 {[%emt 0:02:54]} Rc8 {[%emt 0:01:54]} 29. Rff4 {[%emt 0:03:06]} Rc6 {[%emt 0:01:37]} 30. c3 {[%emt 0:00:26]} Rhc8 {[%emt 0:04:21]} 31. Bb4 {[%emt 0:01:29]} a5 {[%emt 0:01:28]} 32. Ba3 {[%emt 0:00:31]} Kc7 {[%emt 0:15:13]} 33. Kc2 {[%emt 0:01:31]} Rd8 {[%emt 0:01:41]} 34. Bd6+ {[%emt 0:00:37]} Kb7 {[%emt 0:00:16]} 35. Kd2 {[%emt 0:00:46]} 1/2-1/2

[Event "5th Thessaloniki SKG Open-B 2024"]
[Site "Thessaloniki"]
[Date "2024.08.13"]
[Round "9.1"]
[White "Ozturk, Efe Hakan"]
[Black "Avanesyan, Aleksandr"]
[Result "1-0"]
[ECO "B10"]
[WhiteElo "2111"]
[BlackElo "1700"]
[Annotator "RC"]
[PlyCount "137"]
[EventDate "2024.08.05"]
[EventType "swiss"]
[EventCountry "GRE"]
[SourceTitle "playchess.com"]
[Source "ChessBase"]
[SourceQuality "1"]
[TimeControl "40/5400+30:1800+30"]

1. e4 {[%emt 0:00:03]} c6 {[%emt 0:00:06]} 2. c4 {[%emt 0:00:15]} d5 {[%emt 0:00:40]} 3. exd5 {[%emt 0:00:20]} cxd5 {[%emt 0:00:03]} 4. cxd5 {[%emt 0:00:08]} Nf6 {[%emt 0:01:49]} 5. Nc3 {[%emt 0:01:16]} Nxd5 {[%emt 0:00:55]} 6. Nf3 {[%emt 0:01:24]} Nc6 {[%emt 0:01:24]} 7. Bb5 {[%emt 0:02:25]} Nxc3 {[%emt 0:19:24]} 8. bxc3 {[%emt 0:01:23]} Bg4 {[%emt 0:03:40]} 9. h3 {[%emt 0:32:43]} Bh5 {[%emt 0:02:28]} 10. d4 {[%emt 0:03:07]} e6 {[%emt 0:00:20]} 11. g4 {[%emt 0:01:55]} Bg6 {[%emt 0:00:15]} 12. Ne5 {[%emt 0:00:12]} Qd5 {[%emt 0:00:39]} 13. Bxc6+ {[%emt 0:02:22]} bxc6 {[%emt 0:00:01]} 14. O-O {[%emt 0:07:02]} Bd6 {[%emt 0:20:57]} 15. c4 {[%emt 0:10:23]} Qe4 {[%emt 0:11:48]} 16. Re1 {[%emt 0:03:58]} Qc2 {[%emt 0:00:04]} 17. Qxc2 {[%emt 0:04:43]} Bxc2 {[%emt 0:00:01]} 18. Nxc6 {[%emt 0:11:33]} Rc8 {[%emt 0:00:13]} 19. d5 {[%emt 0:02:10]} Ba4 {[%emt 0:02:02]} 20. Nd4 {[%emt 0:01:33]} Rxc4 {[%emt 0:01:49]} 21. Nf5 {[%emt 0:01:38]} Bb4 {[%emt 0:04:41]} 22. Nxg7+ {[%emt 0:00:26]} Kd7 {[%emt 0:01:37]} 23. dxe6+ {[%emt 0:01:10]} fxe6 {[%emt 0:00:07]} 24. Re2 {[%emt 0:03:08]} Bd1 {[%emt 0:04:57]} 25. Re3 {[%emt 0:00:25]} Bc3 {[%emt 0:00:17]} 26. Rxc3 {[%emt 0:01:11]} Rxc3 {[%emt 0:00:48]} 27. Bd2 {[%emt 0:00:16]} Rxh3 {[%emt 0:01:07]} 28. Rxd1 {[%emt 0:00:08]} Rd3 {[%emt 0:00:38]} 29. Kf1 {[%emt 0:07:43]} Rg8 {[%emt 0:08:58]} 30. Nh5 {[%emt 0:00:00]} Rd8 {[%emt 0:00:26]} 31. Ke2 {[%emt 0:00:00]} Ke8 {[%emt 0:00:39]} 32. Nf6+ {[%emt 0:00:00]} Kf7 {[%emt 0:00:06]} 33. Ne4 {[%emt 0:00:00]} Ra3 {[%emt 0:00:41]} 34. Nc3 {[%emt 0:00:00]} Kg6 {[%emt 0:00:51]} 35. Rh1 {[%emt 0:00:00]} Kg7 {[%emt 0:01:38]} 36. f4 {[%emt 0:00:00]} Rd7 {[%emt 0:01:23]} 37. Rh5 {[%emt 0:00:00]} Kg6 {[%emt 0:02:00]} 38. f5+ {[%emt 0:00:00]} exf5 {[%emt 0:00:04]} 39. Rg5+ {[%emt 0:00:00]} Kf6 {[%emt 0:00:27]} 40. Rxf5+ {[%emt 0:00:00]} Kg6 {[%emt 0:00:00]} 41. Nd5 {[%emt 0:05:44]} Rxa2 {[%emt 0:04:05]} 42. Nf4+ {[%emt 0:00:28]} Kh6 {[%emt 0:01:07]} 43. Nd5+ {[%emt 0:06:49]} Kg6 {[%emt 0:02:09]} 44. Kd1 {[%emt 0:04:39]} Ra1+ {[%emt 0:20:50]} 45. Kc2 {[%emt 0:02:15]} Ra2+ {[%emt 0:01:45]} 46. Kc3 {[%emt 0:01:17]} Rf7 {[%emt 0:02:00]} 47. Rg5+ {[%emt 0:08:51]} Kh6 {[%emt 0:00:08]} 48. Be3 {[%emt 0:01:37]} Ra3+ {[%emt 0:01:34]} 49. Kd4 {[%emt 0:00:25]} Rd7 {[%emt 0:03:46]} 50. Rf5+ {[%emt 0:01:18]} Kg7 {[%emt 0:00:42]} 51. Ke4 {[%emt 0:01:01]} Ra4+ {[%emt 0:02:56]} 52. Bd4+ {[%emt 0:02:09]} Rxd4+ {[%emt 0:00:17]} 53. Kxd4 {[%emt 0:00:01]} Rf7 {[%emt 0:00:32]} 54. Re5 {[%emt 0:01:42]} Kg6 {[%emt 0:00:54]} 55. Ke4 {[%emt 0:00:29]} Rf1 {[%emt 0:00:32]} 56. Nf4+ {[%emt 0:00:22]} Kg7 {[%emt 0:01:03]} 57. Kf5 {[%emt 0:01:21]} Kf7 {[%emt 0:01:00]} 58. Ra5 {[%emt 0:01:07]} Rb1 {[%emt 0:00:18]} 59. Rxa7+ {[%emt 0:00:07]} Kg8 {[%emt 0:00:12]} 60. Kf6 {[%emt 0:01:33]} Rb8 {[%emt 0:00:12]} 61. Ne6 {[%emt 0:00:45]} Kh8 {[%emt 0:00:31]} 62. Rd7 {[%emt 0:01:01]} h5 {[%emt 0:00:32]} 63. gxh5 {[%emt 0:00:28]} Rg8 {[%emt 0:00:09]} 64. Rd8 {[%emt 0:00:44]} Rxd8 {[%emt 0:00:04]} 65. Nxd8 {[%emt 0:00:04]} Kh7 {[%emt 0:00:04]} 66. Kg5 {[%emt 0:00:04]} Kg7 {[%emt 0:00:04]} 67. h6+ {[%emt 0:00:03]} Kh7 {[%emt 0:00:15]} 68. Kh5 {[%emt 0:00:10]} Kg8 {[%emt 0:00:04]} 69. Kg6 {[%emt 0:00:09]} 1-0

[Event "5th Thessaloniki SKG Open-B 2024"]
[Site "Thessaloniki"]
[Date "2024.08.13"]
[Round "9.2"]
[White "Pantoglou, Dimitrios"]
[Black "Seretis, Nikolaos G"]
[Result "1-0"]
[ECO "D59"]
[WhiteElo "1893"]
[BlackElo "1675"]
[Annotator "NA RC"]
[PlyCount "137"]
[EventDate "2024.08.05"]
[EventType "swiss"]
[EventCountry "GRE"]
[SourceTitle "playchess.com"]
[Source "ChessBase"]
[SourceQuality "1"]
[TimeControl "40/5400+30:1800+30"]

1. d4 {[%emt 0:00:04]} d5 {[%emt 0:00:09]} 2. c4 {[%emt 0:00:08]} e6 {[%emt 0:00:06]} 3. Nc3 {[%emt 0:00:10]} Be7 {[%emt 0:00:05]} 4. Nf3 {[%emt 0:01:35]} Nf6 {[%emt 0:00:06]} 5. Bg5 {[%emt 0:00:37]} h6 {[%emt 0:00:14]} 6. Bh4 {[%emt 0:00:10]} O-O {[%emt 0:00:07]} 7. e3 {[%emt 0:00:17]} b6 {[%emt 0:00:15]} 8. cxd5 {[%emt 0:00:09]} Nxd5 {[%emt 0:00:11]} 9. Bxe7 {[%emt 0:05:44]} Qxe7 {[%emt 0:00:09]} 10. Nxd5 {[%emt 0:01:28]} exd5 {[%emt 0:00:06]} 11. Bd3 {[%emt 0:00:15]} Be6 {[%emt 1:34:32]} 12. Rc1 {[%emt 0:02:26]} c5 {[%emt 0:00:00]} 13. dxc5 {[%emt 0:02:28]} bxc5 {[%emt 0:00:00]} 14. O-O {[%emt 0:00:47]} Nd7 {[%emt 0:00:00]} 15. Qa4 {[%emt 0:01:54]} Nb6 {[%emt 0:00:00]} 16. Qa5 {[%emt 0:03:55]} Rac8 {[%emt 0:00:00]} 17. Rfd1 {[%emt 0:02:04]} Rfd8 $11 {[%emt 0:00:00]} 18. Be2 {[%emt 0:14:46]} Qf6 {[%emt 0:00:00]} 19. b3 {[%emt 0:11:13]} Qb2 {[%emt 0:00:00]} 20. Bf1 {[%emt 0:10:40]} Rd7 {[%emt 0:00:00]} 21. Rxc5 {[%emt 0:15:11]} Rxc5 {[%emt 0:00:00]} 22. Qxc5 {[%emt 0:00:08]} Qxa2 {[%emt 0:00:00]} 23. Nd4 {[%emt 0:01:01]} Rd8 {[%emt 0:00:00]} 24. Qe7 {[%emt 0:00:35]} Rf8 {[%emt 0:00:00]} 25. Rc1 {[%emt 0:02:14]} Bc8 {[%emt 0:00:00]} 26. Rc7 {[%emt 0:05:23]} Qb1 {[%emt 0:00:00]} 27. Rxa7 {[%emt 0:02:49]} Bf5 {[%emt 0:00:00]} 28. Nxf5 {[%emt 0:02:18]} Qxf5 {[%emt 0:00:00]} 29. Rb7 {[%emt 0:03:05]} Nc8 {[%emt 0:00:00]} 30. Qd7 {[%emt 0:01:02]} Qf6 {[%emt 0:00:00]} 31. Rb8 {[%emt 0:01:40]} Nd6 {[%emt 0:00:24]} 32. Rxf8+ {[%emt 0:02:14]} Kxf8 {[%emt 0:00:09]} 33. g3 {[%emt 0:03:59]} Ne4 {[%emt 0:01:18]} 34. Qc8+ {[%emt 0:00:17]} Ke7 {[%emt 0:00:10]} 35. Qc7+ {[%emt 0:01:30]} Kf8 {[%emt 0:00:42]} 36. Qc8+ {[%emt 0:00:38]} Ke7 {[%emt 0:00:21]} 37. Qc7+ {[%emt 0:00:43]} Kf8 {[%emt 0:00:33]} 38. Qc2 {[%emt 0:00:11]} Qc3 {[%emt 0:01:03]} 39. Qxc3 {[%emt 0:03:21]} Nxc3 {[%emt 0:00:05]} 40. Kg2 {[%emt 0:00:00]} Ke7 {[%emt 0:00:00]} 41. Kf3 {[%emt 0:03:43]} Kd6 {[%emt 0:01:02]} 42. b4 {[%emt 0:01:52]} Ke5 {[%emt 0:05:29]} 43. h4 {[%emt 0:13:19]} d4 {[%emt 0:01:14]} 44. Bc4 {[%emt 0:00:37]} f5 {[%emt 0:02:51]} 45. b5 {[%emt 0:02:52]} Na4 {[%emt 0:02:55]} 46. Bb3 {[%emt 0:04:37]} Nc5 {[%emt 0:01:41]} 47. exd4+ {[%emt 0:01:55]} Kxd4 {[%emt 0:00:06]} 48. b6 {[%emt 0:01:24]} Ke5 {[%emt 0:05:57]} 49. Ba4 {[%emt 0:02:57]} g5 {[%emt 0:01:44]} 50. Bc6 {[%emt 0:02:06]} Kd6 {[%emt 0:01:13]} 51. Be8 {[%emt 0:00:56]} Ke7 {[%emt 0:01:43]} 52. Bb5 {[%emt 0:00:27]} Kd6 {[%emt 0:00:15]} 53. Ke3 {[%emt 0:00:27]} Ne6 {[%emt 0:00:52]} 54. b7 {[%emt 0:00:37]} Kc7 {[%emt 0:00:21]} 55. Bc6 {[%emt 0:00:28]} Nd8 {[%emt 0:06:16]} 56. Bd5 {[%emt 0:00:14]} Nxb7 {[%emt 0:01:21]} 57. Bxb7 {[%emt 0:00:12]} Kxb7 {[%emt 0:00:02]} 58. Kd4 {[%emt 0:00:04]} Kc6 {[%emt 0:00:13]} 59. Ke5 {[%emt 0:00:06]} f4 {[%emt 0:00:07]} 60. hxg5 {[%emt 0:00:39]} hxg5 {[%emt 0:00:21]} 61. gxf4 {[%emt 0:00:10]} gxf4 {[%emt 0:00:05]} 62. Kxf4 {[%emt 0:00:12]} Kd6 {[%emt 0:00:17]} 63. Kf5 {[%emt 0:00:14]} Ke7 {[%emt 0:00:11]} 64. Kg6 {[%emt 0:00:45]} Kf8 {[%emt 0:00:27]} 65. f4 {[%emt 0:00:29]} Kg8 {[%emt 0:00:09]} 66. f5 {[%emt 0:00:35]} Kf8 {[%emt 0:00:15]} 67. Kf6 {[%emt 0:00:05]} Ke8 {[%emt 0:00:28]} 68. Kg7 {[%emt 0:00:05]} Ke7 {[%emt 0:00:26]} 69. f6+ {[%emt 0:00:07]} 1-0

[Event "5th Thessaloniki SKG Open-B 2024"]
[Site "Thessaloniki"]
[Date "2024.08.13"]
[Round "9.3"]
[White "Chalkias, Michail Panagiotis"]
[Black "Hatzigrigoriou, Georgios"]
[Result "1-0"]
[ECO "E01"]
[WhiteElo "1772"]
[BlackElo "1800"]
[Annotator "NA RC"]
[PlyCount "87"]
[EventDate "2024.08.05"]
[EventType "swiss"]
[EventCountry "GRE"]
[SourceTitle "playchess.com"]
[Source "ChessBase"]
[SourceQuality "1"]
[TimeControl "40/5400+30:1800+30"]

1. d4 {[%emt 0:00:05]} d5 {[%emt 0:00:05]} 2. c4 {[%emt 0:00:04]} c6 {[%emt 0:00:03]} 3. Nf3 {[%emt 0:00:03]} Nf6 {[%emt 0:00:04]} 4. Nbd2 {[%emt 0:00:44]} e6 {[%emt 0:01:30]} 5. g3 {[%emt 0:01:17]} Bd6 {[%emt 0:00:20]} 6. Bg2 {[%emt 0:00:08]} Nbd7 {[%emt 0:00:28]} 7. O-O {[%emt 0:00:18]} O-O {[%emt 0:00:31]} 8. Qc2 {[%emt 0:00:07]} b6 {[%emt 0:01:52]} 9. e4 {[%emt 0:07:48]} dxe4 {[%emt 0:00:30]} 10. Nxe4 {[%emt 0:00:25]} Nxe4 {[%emt 0:04:01]} 11. Qxe4 {[%emt 0:00:03]} Bb7 {[%emt 0:01:06]} 12. Rd1 {[%emt 0:01:31]} Qc7 {[%emt 0:00:59]} 13. Qe2 {[%emt 0:02:48]} Rfe8 {[%emt 0:03:30]} 14. Qd3 {[%emt 0:13:17]} h6 {[%emt 0:04:52]} 15. b3 $11 {[%emt 0:01:41]} (15. c5 $14 {deserves consideration.} Be7 16. Bf4) 15... e5 {[%emt 0:27:06]} 16. dxe5 {[%emt 0:01:35]} Nxe5 {[%emt 0:00:07]} 17. Qxd6 {[%emt 0:08:27]} Rad8 {[%emt 0:00:30]} 18. Qxc7 {[%emt 0:03:02]} Rxd1+ {[%emt 0:00:07]} 19. Bf1 {[%emt 0:05:17]} Nxf3+ {[%emt 0:00:32]} 20. Kg2 {[%emt 0:00:01]} Ne1+ {[%emt 0:02:10]} 21. Kh3 {[%emt 0:05:12]} Bc8+ {[%emt 0:01:19]} 22. g4 {[%emt 0:00:13]} Nc2 {[%emt 0:02:19]} 23. Qxc6 {[%emt 0:10:38]} Bd7 {[%emt 0:00:56]} 24. Qf3 {[%emt 0:00:02]} h5 {[%emt 0:11:53]} 25. Qc3 {[%emt 0:05:49]} Bxg4+ {[%emt 0:07:58]} 26. Kg3 {[%emt 0:00:29]} Nxa1 {[%emt 0:01:41]} 27. Bb2 {[%emt 0:00:32]} f6 {[%emt 0:00:19]} 28. Bg2 {[%emt 0:00:34]} Bf5 {[%emt 0:04:17]} 29. Bd5+ {[%emt 0:01:49]} Kh7 {[%emt 0:01:01]} 30. Kf4 {[%emt 0:02:10]} Rd3 {[%emt 0:01:10]} 31. Qc1 {[%emt 0:00:46]} Nc2 {[%emt 0:14:29]} 32. Kxf5 {[%emt 0:02:51]} Nd4+ {[%emt 0:03:19]} 33. Bxd4 {[%emt 0:00:02]} Rxd4 {[%emt 0:00:10]} 34. f4 {[%emt 0:01:32]} g6+ {[%emt 0:03:33]} 35. Kxf6 {[%emt 0:00:10]} Re2 {[%emt 0:00:46]} 36. Qf1 {[%emt 0:01:58]} Re8 {[%emt 0:00:38]} 37. Qf2 {[%emt 0:02:21]} Rf8+ {[%emt 0:00:38]} 38. Ke5 {[%emt 0:01:04]} Rd1 {[%emt 0:00:44]} 39. Qh4 {[%emt 0:00:53]} Re8+ {[%emt 0:00:33]} 40. Kd6 {[%emt 0:00:00]} Rde1 {[%emt 0:00:00]} 41. Qf6 {[%emt 0:01:39]} Rh8 {[%emt 0:03:57]} 42. f5 {[%emt 0:02:13]} gxf5 {[%emt 0:00:17]} 43. Qxf5+ {[%emt 0:00:06]} Kh6 {[%emt 0:00:24]} 44. Qf4+ {[%emt 0:00:34]} 1-0